fUST/lending_fUST_20250617
["ID","MTS","AMOUNT","RATE_DAILY","PERIOD"]
[366245639,1750162246960,-460.0,0.00024136,6]
[366245640,1750162246969,-1312.14,0.00024136,6]
[366245641,1750162246979,-460.0,0.00024136,6]
[366245642,1750162246989,-460.0,0.00024136,6]
[366245643,1750162246998,-460.0,0.00024136,6]
[366245644,1750162247009,-460.0,0.00024136,6]
[366245645,1750162247019,-460.0,0.00024136,6]
[366245646,1750162247028,-460.0,0.00024136,6]
[366245647,1750162247039,-2386.55,0.00024136,6]
[366245648,1750162247048,-460.0,0.00024136,6]
[366245649,1750162247057,-397.42707326,0.00024136,6]
[366245650,1750162247067,-151.0,0.00024136,7]
[366245651,1750162247076,-151.0,0.00024136,7]
[366245652,1750162247085,-462.08,0.00024136,6]
[366245653,1750162247094,-460.0,0.00024136,6]
[366245654,1750162247103,-151.0,0.00024136,7]
[366245655,1750162247112,-460.0,0.00024136,6]
[366245656,1750162247122,-460.0,0.00024136,6]
[366245657,1750162247131,-460.0,0.00024136,6]
[366245658,1750162247140,-460.0,0.00024136,6]
[366245659,1750162247150,-460.0,0.00024136,6]
[366245660,1750162247159,-387.68347602,0.00024136,6]
[366245661,1750162247168,-1921.76,0.00024136,6]
[366245662,1750162247177,-460.0,0.00024136,6]
[366245663,1750162247187,-460.0,0.00024136,6]
[366245664,1750162247196,-460.0,0.00024136,6]
[366245665,1750162247206,-460.0,0.00024136,6]
[366245666,1750162247216,-460.0,0.00024136,6]
[366245667,1750162247225,-2520.39,0.00024136,6]
[366245668,1750162247234,-968.8,0.00024136,6]
[366245669,1750162247243,-460.0,0.00024136,6]
[366245670,1750162247252,-2120.41,0.00024136,6]
[366245671,1750162247262,-460.0,0.00024136,6]
[366245672,1750162247271,-498.81,0.00024136,6]
[366245673,1750162247280,-460.0,0.00024136,6]
[366245674,1750162247289,-859.82,0.00024136,6]
[366245675,1750162247299,-460.0,0.00024136,6]
[366245676,1750162247310,-288.55854162,0.00024136,6]
[366245677,1750162247321,-460.0,0.00024136,6]
[366245678,1750162247330,-460.0,0.00024136,6]
[366245679,1750162247340,-575.77,0.00024136,6]
[366245680,1750162247350,-1599.45,0.00024136,6]
[366245681,1750162247360,-483.03,0.00024136,6]
[366245682,1750162247369,-460.0,0.00024136,6]
[366245683,1750162247379,-3948.38,0.00024136,6]
[366245684,1750162247389,-151.0,0.00024136,7]
[366245685,1750162247399,-420.20019425,0.00024136,6]
[366245686,1750162247408,-460.0,0.00024136,6]
[366245687,1750162247418,-460.0,0.00024136,6]
[366245688,1750162247428,-460.0,0.00024136,6]
[366245689,1750162247438,-460.0,0.00024136,6]
[366245690,1750162247447,-151.0,0.00024136,7]
[366245691,1750162247457,-310.81211294,0.00024136,6]
[366245692,1750162247466,-460.0,0.00024136,6]
[366245693,1750162247475,-460.0,0.00024136,6]
[366245694,1750162247485,-1282.67,0.00024136,6]
[366245695,1750162247495,-423.43957043,0.00024136,6]
[366245696,1750162247504,-424.87125098,0.00024136,6]
[366245697,1750162247514,-460.0,0.00024136,6]
[366245698,1750162247524,-151.0,0.00024136,7]
[366245699,1750162247533,-463.53822957,0.00024136,6]
[366245700,1750162247543,-151.0,0.00024136,7]
[366245701,1750162247553,-151.0,0.00024136,7]
[366245702,1750162247562,-460.0,0.00024136,6]
[366245703,1750162247572,-621.08,0.00024136,6]
[366245704,1750162247582,-460.0,0.00024136,6]
[366245705,1750162247592,-460.0,0.00024136,6]
[366245706,1750162247601,-460.0,0.00024136,6]
[366245707,1750162247611,-2433.37,0.00024136,6]
[366245708,1750162247621,-624.56,0.00024136,6]
[366245709,1750162247631,-460.0,0.00024136,6]
[366245710,1750162247640,-483.59,0.00024136,6]
[366245711,1750162247651,-460.0,0.00024136,6]
[366245712,1750162247739,-477.94,0.00024136,6]
[366245713,1750162247750,-413.94324642,0.00024136,6]
[366245714,1750162247760,-460.0,0.00024136,6]
[366245715,1750162247770,-460.0,0.00024136,6]
[366245716,1750162247780,-460.0,0.00024136,6]
[366245717,1750162247792,-2618.58,0.00024136,6]
[366245718,1750162247802,-460.0,0.00024136,6]
[366245719,1750162247812,-460.0,0.00024136,6]
[366245720,1750162247821,-460.0,0.00024136,6]
[366245721,1750162247831,-460.0,0.00024136,6]
[366245722,1750162247841,-663.84,0.00024136,6]
[366245723,1750162247851,-460.0,0.00024136,6]
[366245724,1750162247861,-460.0,0.00024136,6]
[366245725,1750162247871,-319.99093939,0.00024136,6]
[366245726,1750162247881,-460.0,0.00024136,6]
[366245727,1750162247890,-460.0,0.00024136,6]
[366245728,1750162247900,-460.0,0.00024136,6]
[366245729,1750162247910,-460.0,0.00024136,6]
[366245730,1750162247920,-460.0,0.00024136,6]
[366245731,1750162247930,-460.0,0.00024136,6]
[366245732,1750162247939,-460.0,0.00024136,6]
[366245733,1750162247949,-460.0,0.00024136,6]
[366245734,1750162247959,-523.33780845,0.00024136,6]
[366245735,1750162247968,-460.0,0.00024136,6]
[366245736,1750162247977,-451.06543435,0.00024136,6]
[366245737,1750162247987,-460.0,0.00024136,6]
[366245738,1750162247996,-460.0,0.00024136,6]
[366245739,1750162248006,-433.80689613,0.00024136,6]
[366245740,1750162248016,-460.0,0.00024136,6]
[366245741,1750162248026,-873.19,0.00024136,6]
[366245742,1750162248036,-460.0,0.00024136,6]
[366245743,1750162248046,-4182.17,0.00024136,6]
[366245744,1750162248056,-200.80316863,0.00024136,6]
[366245745,1750162248065,-460.0,0.00024136,6]
[366245746,1750162248075,-151.0,0.00024136,7]
[366245747,1750162248085,-151.0,0.00024136,7]
[366245748,1750162248095,-151.0,0.00024136,7]
[366245749,1750162248104,-5951.05,0.00024136,6]
[366245750,1750162248114,-460.0,0.00024136,6]
[366245751,1750162248124,-460.0,0.00024136,6]
[366245752,1750162248134,-241.62754699,0.00024136,6]
[366245753,1750162248143,-151.0,0.00024136,7]
[366245754,1750162248153,-460.0,0.00024136,6]
[366245755,1750162248163,-721.41,0.00024136,6]
[366245756,1750162248173,-460.0,0.00024136,6]
[366245757,1750162248183,-460.0,0.00024136,6]
[366245758,1750162248194,-2037.34,0.00024136,6]
[366245759,1750162248204,-1473.09,0.00024136,6]
[366245760,1750162248214,-460.0,0.00024136,6]
[366245761,1750162248223,-248.6495974,0.00024136,6]
[366245762,1750162248234,-190.27953197,0.00024136,6]
[366245763,1750162248243,-163.249263,0.00024136,7]
[366245764,1750162248253,-460.0,0.00024136,6]
[366245765,1750162248263,-460.0,0.00024136,6]
[366245766,1750162248272,-448.76775131,0.00024136,6]
[366245767,1750162248282,-4083.68,0.00024136,6]
[366245768,1750162248292,-774.02,0.00024136,6]
[366245769,1750162248302,-460.0,0.00024136,6]
[366245770,1750162248311,-579.5608984,0.00024146,2]
[366245771,1750162248322,-166.65957822,0.00024153,4]
[366245772,1750162248331,-572.46801572,0.00024153,4]
[366245773,1750162248341,-152.839024,0.00024164,7]
[366245774,1750162248351,-460.0,0.00024164,6]
[366245775,1750162248360,-460.0,0.00024164,6]
[366245776,1750162248370,-420.62638663,0.00024164,6]
[366245777,1750162248379,-300.4973,0.00024164,7]
[366245778,1750162248389,-460.0,0.00024164,6]
[366245779,1750162248398,-253.89854203,0.00024164,6]
[366245780,1750162248408,-401.7693802,0.00024164,6]
[366245781,1750162248418,-460.0,0.00024164,6]
[366245782,1750162248427,-460.0,0.00024164,6]
[366245783,1750162248437,-460.0,0.00024164,6]
[366245784,1750162248449,-460.0,0.00024164,6]
[366245785,1750162248458,-151.0,0.00024164,7]
[366245786,1750162248468,-460.0,0.00024164,6]
[366245787,1750162248478,-460.0,0.00024164,6]
[366245788,1750162248488,-460.0,0.00024164,6]
[366245789,1750162248498,-377.17675612,0.00024164,6]
[366245790,1750162248507,-188.91410348,0.00024164,6]
[366245791,1750162248517,-460.0,0.00024164,6]
[366245792,1750162248527,-460.0,0.00024164,6]
[366245793,1750162248538,-460.0,0.00024164,6]
[366245794,1750162248548,-360.38266317,0.00024164,6]
[366245795,1750162248558,-460.0,0.00024164,6]
[366245796,1750162248567,-200.0,0.00024164,6]
[366245797,1750162248577,-460.0,0.00024164,6]
[366245798,1750162248588,-460.0,0.00024164,6]
[366245799,1750162248598,-460.0,0.00024164,6]
[366245800,1750162248608,-460.0,0.00024164,6]
[366245801,1750162248618,-460.0,0.00024164,6]
[366245802,1750162248628,-460.0,0.00024164,6]
[366245803,1750162248637,-180.88797994,0.00024164,6]
[366245804,1750162248647,-468.16909675,0.00024164,6]
[366245805,1750162248657,-460.0,0.00024164,2]
[366245806,1750162248667,-460.0,0.00024164,6]
[366245807,1750162248678,-238.76874545,0.00024164,6]
[366245808,1750162248689,-460.0,0.00024164,6]
[366245809,1750162248699,-2216.71,0.00024164,2]
[366245810,1750162248709,-460.0,0.00024164,6]
[366245811,1750162248719,-184.38607877,0.00024164,6]
[366245812,1750162248730,-460.0,0.00024164,6]
[366245813,1750162248739,-460.0,0.00024164,6]
[366245814,1750162248749,-460.0,0.00024164,6]
[366245815,1750162248759,-460.0,0.00024164,6]
[366245816,1750162248851,-213.44499015,0.00024164,6]
[366245817,1750162248863,-460.0,0.00024164,6]
[366245818,1750162248873,-485.29430665,0.00024164,6]
[366245819,1750162248883,-460.0,0.00024164,6]
[366245820,1750162248894,-460.0,0.00024164,6]
[366245821,1750162248905,-432.47558634,0.00024164,6]
[366245822,1750162248915,-460.0,0.00024164,6]
[366245823,1750162248926,-460.0,0.00024164,6]
[366245824,1750162248936,-317.17456677,0.00024164,6]
[366245825,1750162248947,-471.32508328,0.00024164,6]
[366245826,1750162248958,-460.0,0.00024164,6]
[366245827,1750162248969,-460.0,0.00024164,6]
[366245828,1750162248979,-460.0,0.00024164,6]
[366245829,1750162248988,-360.0,0.00024164,6]
[366245830,1750162248998,-381.58880309,0.00024164,6]
[366245831,1750162249007,-481.79756212,0.00024164,6]
[366245832,1750162249017,-460.0,0.00024164,6]
[366245833,1750162249027,-460.0,0.00024164,6]
[366245834,1750162249042,-460.0,0.00024164,6]
[366245835,1750162249052,-460.0,0.00024164,6]
[366245836,1750162249062,-408.87433766,0.00024164,6]
[366245837,1750162249072,-460.0,0.00024164,6]
[366245838,1750162249081,-460.0,0.00024164,6]
[366245839,1750162249090,-460.0,0.00024164,6]
[366245840,1750162249100,-460.0,0.00024164,6]
[366245841,1750162249110,-460.0,0.00024164,6]
[366245842,1750162249119,-460.0,0.00024164,6]
[366245843,1750162249129,-500.0,0.00024164,6]
[366245844,1750162249138,-408.51603377,0.00024164,6]
[366245845,1750162249148,-460.0,0.00024164,6]
[366245846,1750162249157,-1296.25,0.00024164,6]
[366245847,1750162249167,-460.0,0.00024164,6]
[366245848,1750162249177,-376.17586911,0.00024164,6]
[366245849,1750162249187,-460.0,0.00024164,6]
[366245850,1750162249199,-588.32,0.00024164,6]
[366245851,1750162249210,-460.0,0.00024164,6]
[366245852,1750162249220,-460.0,0.00024164,6]
[366245853,1750162249230,-460.0,0.00024164,6]
[366245854,1750162249240,-460.0,0.00024164,6]
[366245855,1750162249251,-460.0,0.00024164,6]
[366245856,1750162249260,-460.0,0.00024164,6]
[366245857,1750162249269,-460.0,0.00024164,6]
[366245858,1750162249279,-460.0,0.00024164,6]
[366245859,1750162249288,-460.0,0.00024164,2]
[366245860,1750162249298,-460.0,0.00024164,6]
[366245861,1750162249307,-460.0,0.00024164,6]
[366245862,1750162249317,-407.38755406,0.00024164,6]
[366245863,1750162249327,-283.50777301,0.00024164,6]
[366245864,1750162249349,-460.0,0.00024164,6]
[366245865,1750162249370,-460.0,0.00024164,6]
[366245866,1750162249394,-500.0,0.00024164,6]
[366245867,1750162249417,-460.0,0.00024164,6]
[366245868,1750162249441,-460.0,0.00024164,6]
[366245869,1750162249462,-460.0,0.00024164,6]
[366245870,1750162249486,-334.06841849,0.00024164,6]
[366245871,1750162249503,-549.29,0.00024164,6]
[366245872,1750162249523,-393.77950355,0.00024164,6]
[366245873,1750162249546,-405.42068383,0.00024164,6]
[366245874,1750162249568,-460.0,0.00024164,6]
[366245875,1750162249583,-460.0,0.00024164,6]
[366245876,1750162249606,-460.0,0.00024164,6]
[366245877,1750162249623,-460.0,0.00024164,6]
[366245878,1750162249640,-370.83502772,0.00024164,6]
[366245879,1750162249656,-151.0,0.00024164,7]
[366245880,1750162249673,-460.0,0.00024164,6]
[366245881,1750162249690,-431.5138295,0.00024164,6]
[366245882,1750162249708,-460.0,0.00024164,6]
[366245883,1750162249726,-460.0,0.00024164,6]
[366245884,1750162249744,-460.0,0.00024164,6]
[366245885,1750162249759,-471.60515005,0.00024164,6]
[366245886,1750162249776,-460.0,0.00024164,6]
[366245887,1750162249795,-460.0,0.00024164,6]
[366245888,1750162249812,-460.0,0.00024164,6]
[366245889,1750162249830,-460.0,0.00024164,6]
[366245890,1750162249848,-460.0,0.00024164,6]
[366245891,1750162249865,-971.94,0.00024164,6]
[366245892,1750162249885,-460.0,0.00024164,6]
[366245893,1750162249903,-360.85728495,0.00024164,6]
[366245894,1750162249920,-460.0,0.00024164,6]
[366245895,1750162249938,-460.0,0.00024164,6]
[366245896,1750162249955,-460.0,0.00024164,6]
[366245897,1750162249971,-460.0,0.00024164,6]
[366245898,1750162249987,-460.0,0.00024164,6]
[366245899,1750162250005,-460.0,0.00024164,6]
[366245900,1750162250021,-460.0,0.00024164,6]
[366245901,1750162250039,-460.0,0.00024164,6]
[366245902,1750162250056,-460.0,0.00024164,6]
[366245903,1750162250071,-460.0,0.00024164,6]
[366245904,1750162250088,-460.0,0.00024164,6]
[366245905,1750162250097,-460.0,0.00024164,6]
[366245906,1750162250107,-460.0,0.00024164,6]
[366245907,1750162250116,-460.0,0.00024164,6]
[366245908,1750162250125,-408.07351467,0.00024164,6]
[366245909,1750162250135,-460.0,0.00024164,6]
[366245910,1750162250144,-2170.27,0.00024164,2]
[366245911,1750162250154,-151.0,0.00024164,2]
[366245912,1750162250327,-879.44,0.00024164,6]
[366245913,1750162250337,-460.0,0.00024164,6]
[366245914,1750162250346,-460.0,0.00024164,6]
[366245915,1750162250356,-460.0,0.00024164,6]
[366245916,1750162250365,-460.0,0.00024164,6]
[366245917,1750162250374,-460.0,0.00024164,6]
[366245918,1750162250384,-410.44207642,0.00024164,6]
[366245919,1750162250393,-460.0,0.00024164,6]
[366245920,1750162250403,-460.0,0.00024164,6]
[366245921,1750162250412,-460.0,0.00024164,6]
[366245922,1750162250421,-460.0,0.00024164,6]
[366245923,1750162250431,-460.0,0.00024164,6]
[366245924,1750162250441,-460.0,0.00024164,6]
[366245925,1750162250450,-460.0,0.00024164,6]
[366245926,1750162250460,-958.56,0.00024164,6]
[366245927,1750162250469,-65.94182832,0.00024164,6]
[366245928,1750162250635,-394.05817168,0.00024164,6]
[366245929,1750162250645,-460.0,0.00024164,6]
[366245930,1750162250655,-460.0,0.00024164,6]
[366245931,1750162250665,-987.6,0.00024164,6]
[366245932,1750162250674,-460.0,0.00024164,6]
[366245933,1750162250684,-460.0,0.00024164,6]
[366245934,1750162250694,-460.0,0.00024164,6]
[366245935,1750162250705,-999.21,0.00024164,6]
[366245936,1750162250715,-460.0,0.00024164,6]
[366245937,1750162250724,-460.0,0.00024164,6]
[366245938,1750162250734,-460.0,0.00024164,6]
[366245939,1750162250743,-460.0,0.00024164,6]
[366245940,1750162250753,-846.13,0.00024164,6]
[366245941,1750162250762,-460.0,0.00024164,6]
[366245942,1750162250772,-460.0,0.00024164,6]
[366245943,1750162250784,-460.0,0.00024164,6]
[366245944,1750162250796,-460.0,0.00024164,6]
[366245945,1750162250815,-460.0,0.00024164,6]
[366245946,1750162250825,-460.0,0.00024164,6]
[366245947,1750162250835,-460.0,0.00024164,6]
[366245948,1750162250846,-1737.74,0.00024164,6]
[366245949,1750162250857,-1057.55,0.00024164,6]
[366245950,1750162250867,-1072.23,0.00024164,6]
[366245951,1750162250878,-580.84,0.00024164,6]
[366245952,1750162250888,-460.0,0.00024164,6]
[366245953,1750162250897,-295.85824626,0.00024164,6]
[366245954,1750162250907,-460.0,0.00024164,6]
[366245955,1750162250916,-455.51419762,0.00024164,6]
[366245956,1750162250925,-460.0,0.00024164,6]
[366245957,1750162250935,-460.0,0.00024164,6]
[366245958,1750162250945,-5506.08,0.00024164,6]
[366245959,1750162250955,-460.0,0.00024164,6]
[366245960,1750162250964,-4722.03,0.00024164,6]
[366245961,1750162250973,-460.0,0.00024164,6]
[366245962,1750162250983,-460.0,0.00024164,6]
[366245963,1750162250992,-820.61,0.00024164,6]
[366245964,1750162251002,-460.0,0.00024164,6]
[366245965,1750162251011,-460.0,0.00024164,6]
[366245966,1750162251020,-179.50000004,0.00024164,6]
[366245967,1750162251029,-1189.99,0.00024164,6]
[366245968,1750162251039,-5597.0,0.00024164,6]
[366245969,1750162251048,-460.0,0.00024164,6]
[366245970,1750162251057,-340.0,0.00024164,6]
[366245971,1750162251067,-1531.91,0.00024164,6]
[366245972,1750162251076,-460.0,0.00024164,6]
[366245973,1750162251085,-460.0,0.00024164,6]
[366245974,1750162251095,-647.26,0.00024164,6]
[366245975,1750162251105,-5645.53,0.00024164,6]
[366245976,1750162251114,-460.0,0.00024164,6]
[366245977,1750162251124,-1363.12,0.00024164,6]
[366245978,1750162251133,-280.0,0.00024164,6]
[366245979,1750162251143,-460.0,0.00024164,6]
[366245980,1750162251153,-460.0,0.00024164,6]
[366245981,1750162251163,-460.0,0.00024164,6]
[366245982,1750162251173,-7064.38,0.00024164,6]
[366245983,1750162251183,-561.26,0.00024164,6]
[366245984,1750162251194,-460.0,0.00024164,6]
[366245985,1750162251204,-460.0,0.00024164,6]
[366245986,1750162251213,-1312.14,0.00024164,6]
[366245987,1750162251224,-460.0,0.00024164,6]
[366245988,1750162251233,-460.0,0.00024164,6]
[366245989,1750162251243,-460.0,0.00024164,6]
[366245990,1750162251253,-460.0,0.00024164,6]
[366245991,1750162251262,-460.0,0.00024164,6]
[366245992,1750162251272,-460.0,0.00024164,6]
[366245993,1750162251282,-2386.55,0.00024164,6]
[366245994,1750162251291,-460.0,0.00024164,6]
[366245995,1750162251301,-462.08,0.00024164,6]
[366245996,1750162251310,-460.0,0.00024164,6]
[366245997,1750162251320,-460.0,0.00024164,6]
[366245998,1750162251330,-460.0,0.00024164,6]
[366245999,1750162251339,-460.0,0.00024164,6]
[366246000,1750162251350,-318.49635214,0.00024164,6]
[366246001,1750162251359,-460.0,0.00024164,6]
[366246002,1750162251369,-1921.76,0.00024164,6]
[366246003,1750162251378,-406.7128785,0.00024164,6]
[366246004,1750162251388,-460.0,0.00024164,6]
[366246005,1750162251398,-460.0,0.00024164,6]
[366246006,1750162251407,-460.0,0.00024164,6]
[366246007,1750162251417,-460.0,0.00024164,6]
[366246008,1750162251428,-2520.39,0.00024164,6]
[366246009,1750162251438,-968.8,0.00024164,6]
[366246010,1750162251448,-460.0,0.00024164,6]
[366246011,1750162251457,-2120.41,0.00024164,6]
[366246012,1750162251467,-460.0,0.00024164,6]
[366246013,1750162251476,-498.81,0.00024164,6]
[366246014,1750162251485,-460.0,0.00024164,6]
[366246015,1750162251494,-859.82,0.00024164,6]
[366246016,1750162251503,-460.0,0.00024164,6]
[366246017,1750162251515,-460.0,0.00024164,6]
[366246018,1750162251525,-460.0,0.00024164,6]
[366246019,1750162251534,-575.77,0.00024164,6]
[366246020,1750162251545,-1599.45,0.00024164,6]
[366246021,1750162251555,-483.03,0.00024164,6]
[366246022,1750162251565,-460.0,0.00024164,6]
[366246023,1750162251574,-3948.38,0.00024164,6]
[366246024,1750162251584,-460.0,0.00024164,6]
[366246025,1750162251594,-460.0,0.00024164,6]
[366246026,1750162251603,-460.0,0.00024164,6]
[366246027,1750162251613,-460.0,0.00024164,6]
[366246028,1750162251622,-460.0,0.00024164,6]
[366246029,1750162251632,-460.0,0.00024164,6]
[366246030,1750162251641,-1282.67,0.00024164,6]
[366246031,1750162251651,-460.0,0.00024164,6]
[366246032,1750162251661,-151.0,0.00024164,7]
[366246033,1750162251670,-460.0,0.00024164,6]
[366246034,1750162251679,-621.08,0.00024164,6]
[366246035,1750162251688,-460.0,0.00024164,6]
[366246036,1750162251699,-460.0,0.00024164,6]
[366246037,1750162251708,-460.0,0.00024164,6]
[366246038,1750162251717,-2433.37,0.00024164,6]
[366246039,1750162251727,-624.56,0.00024164,6]
[366246040,1750162251737,-460.0,0.00024164,6]
[366246041,1750162251746,-483.59,0.00024164,6]
[366246042,1750162251755,-460.0,0.00024164,6]
[366246043,1750162251764,-477.94,0.00024164,6]
[366246044,1750162251774,-460.0,0.00024164,6]
[366246045,1750162251784,-460.0,0.00024164,6]
[366246046,1750162251796,-335.12597717,0.00024164,6]
[366246047,1750162251805,-2618.58,0.00024164,6]
[366246048,1750162251815,-165.60710738,0.00024164,6]
[366246049,1750162251824,-460.0,0.00024164,6]
[366246050,1750162251834,-460.0,0.00024164,6]
[366246051,1750162251843,-460.0,0.00024164,6]
[366246052,1750162251852,-663.84,0.00024164,6]
[366246053,1750162251861,-460.0,0.00024164,6]
[366246054,1750162251870,-460.0,0.00024164,6]
[366246055,1750162251879,-460.0,0.00024164,6]
[366246056,1750162251889,-460.0,0.00024164,6]
[366246057,1750162251898,-460.0,0.00024164,6]
[366246058,1750162251908,-531.20266482,0.00024164,6]
[366246059,1750162251917,-460.0,0.00024164,6]
[366246060,1750162251927,-460.0,0.00024164,6]
[366246061,1750162251937,-575.98336623,0.00024164,6]
[366246062,1750162251947,-460.0,0.00024164,6]
[366246063,1750162251957,-460.0,0.00024164,6]
[366246064,1750162251967,-553.89597467,0.00024164,6]
[366246065,1750162251977,-460.0,0.00024164,6]
[366246066,1750162251986,-437.82945014,0.00024164,6]
[366246067,1750162251995,-873.19,0.00024164,6]
[366246068,1750162252007,-162.94344018,0.00024164,6]
[366246069,1750162252019,-4182.17,0.00024164,6]
[366246070,1750162252029,-460.0,0.00024164,6]
[366246071,1750162252038,-151.0,0.00024164,7]
[366246072,1750162252048,-5951.05,0.00024164,6]
[366246073,1750162252057,-460.0,0.00024164,6]
[366246074,1750162252067,-419.63527558,0.00024164,6]
[366246075,1750162252208,-430.11993108,0.00024164,6]
[366246076,1750162252218,-721.41,0.00024164,6]
[366246077,1750162252227,-460.0,0.00024164,6]
[366246078,1750162252237,-460.0,0.00024164,6]
[366246079,1750162252246,-2037.34,0.00024164,6]
[366246080,1750162252255,-1473.09,0.00024164,6]
[366246081,1750162252265,-460.0,0.00024164,6]
[366246082,1750162252274,-277.34805806,0.00024164,6]
[366246083,1750162252283,-460.0,0.00024164,6]
[366246084,1750162252293,-4083.68,0.00024164,6]
[366246085,1750162252303,-774.02,0.00024164,6]
[366246086,1750162252312,-565.2382,0.00024171,7]
[366246087,1750162252322,-500.0,0.00024173,2]
[366246088,1750162252332,-500.0,0.00024173,2]
[366246089,1750162252342,-500.0,0.00024173,2]
[366246090,1750162252352,-500.0,0.00024173,2]
[366246091,1750162252362,-500.0,0.00024173,2]
[366246092,1750162252372,-500.0,0.00024173,2]
[366246093,1750162252381,-505.53376577,0.00024173,2]
[366246094,1750162252390,-500.0,0.00024173,2]
[366246095,1750162252399,-500.0,0.00024173,2]
[366246096,1750162252409,-206.0,0.0002418,2]
[366246097,1750162252419,-797.85,0.00024182,6]
[366246098,1750162252432,-207.93432221,0.0002419,2]
[366246099,1750162252441,-576.69401308,0.00024191,6]
[366246100,1750162252450,-167.081886,0.00024191,6]
[366246101,1750162252460,-460.0,0.00024191,6]
[366246102,1750162252470,-460.0,0.00024191,6]
[366246103,1750162252480,-460.0,0.00024191,6]
[366246104,1750162252489,-460.0,0.00024191,6]
[366246105,1750162252499,-460.0,0.00024191,6]
[366246106,1750162252509,-151.0,0.00024191,7]
[366246107,1750162252519,-151.0,0.00024191,7]
[366246108,1750162252529,-460.0,0.00024191,6]
[366246109,1750162252538,-460.0,0.00024191,6]
[366246110,1750162252548,-460.0,0.00024191,6]
[366246111,1750162252558,-423.41874704,0.00024191,6]
[366246112,1750162252568,-460.0,0.00024191,6]
[366246113,1750162252578,-460.0,0.00024191,6]
[366246114,1750162252588,-462.21512991,0.00024191,6]
[366246115,1750162252597,-200.0,0.00024191,6]
[366246116,1750162252607,-460.0,0.00024191,6]
[366246117,1750162252616,-460.0,0.00024191,6]
[366246118,1750162252626,-460.0,0.00024191,6]
[366246119,1750162252636,-157.42169834,0.00024191,6]
[366246120,1750162252645,-460.0,0.00024191,6]
[366246121,1750162252655,-460.0,0.00024191,6]
[366246122,1750162252665,-558.34322606,0.00024191,2]
[366246123,1750162252674,-460.0,0.00024191,6]
[366246124,1750162252683,-570.70356345,0.00024191,6]
[366246125,1750162252695,-2216.71,0.00024191,2]
[366246126,1750162252705,-460.0,0.00024191,6]
[366246127,1750162252714,-460.0,0.00024191,6]
[366246128,1750162252724,-460.0,0.00024191,6]
[366246129,1750162252734,-460.0,0.00024191,6]
[366246130,1750162252744,-460.0,0.00024191,6]
[366246131,1750162252754,-460.0,0.00024191,6]
[366246132,1750162252763,-460.0,0.00024191,6]
[366246133,1750162252773,-198.73580747,0.00024191,6]
[366246134,1750162252783,-460.0,0.00024191,6]
[366246135,1750162252796,-460.0,0.00024191,6]
[366246136,1750162252805,-460.0,0.00024191,6]
[366246137,1750162252815,-460.0,0.00024191,6]
[366246138,1750162252824,-460.0,0.00024191,6]